Cogmind - Beta 14 @@@ ROGUE MODE // 2024.08.14 @ 15:24:13 Player: Schmee Result: Destroyed self with Grenade Launcher Performance ------------- Evolutions (0) 0 Regions Visited (2) 400 Robots Destroyed (11) 55 Value Destroyed (297) 297 Prototype IDs (1) 20 Alien Tech Used (0) 0 Bonus (0) 0 TOTAL SCORE: 772 Bonus ------- None Cogmind --------- Core Integrity 0/250 Matter 174/300 Energy 280/280 System Corruption 0% Temperature Cool (0) Movement Treading (160) Location -10/Mines Parts ------- > --- POWER (1) -------- Heavy Ion Engine > --- PROPULSION (2) --- Light Treads Light Treads > --- UTILITY (2) ------ Large Storage Unit Structural Scanner > --- WEAPON (2) ------- Grenade Launcher > --- INVENTORY (15) --- Heavy Ion Engine Light Treads Light Treads Compact Wheel High-capacity Storage Unit High-capacity Matter Pod (22) Experimental Sensor Array Improved Terrain Scanner Seismic Detector ECM Suite Beam Rifle Beam Cannon Assault Rifle Mining Laser Peak State ------------ > --- POWER ------------ Heavy Ion Engine > --- PROPULSION ------- Light Treads Light Treads > --- UTILITY ---------- Large Storage Unit Structural Scanner > --- WEAPON ----------- Assault Rifle Assault Rifle > --- INVENTORY -------- Heavy Ion Engine Light Treads Light Treads Compact Wheel High-capacity Storage Unit High-capacity Matter Pod Experimental Sensor Array Seismic Detector ECM Suite Beam Rifle Beam Cannon Grenade Launcher Mining Laser [Rating: 11] Favorites ----------- Power Ion Engine Engine Ion Engine Propulsion Light Treads Treads Light Treads Leg Aluminum Leg Utility Small Storage Unit Device Structural Scanner Storage Small Storage Unit Weapon Assault Rifle Energy Cannon Beam Cannon Ballistic Gun Assault Rifle Launcher Grenade Launcher Build | -11 -10 -10 ------- Run | Yrd Mat Min Slots Evolved . | . . . Power . | . . . Propulsion . | . . . Utility . | . . . Weapon . | . . . Parts Attached 16 | . 9 7 Power 1 | . 1 . Engine 1 | . 1 . Core . | . . . Reactor . | . . . Propulsion 5 | . 3 2 Treads 5 | . 3 2 Leg . | . . . Wheel . | . . . Hover . | . . . Flight . | . . . Utility 2 | . 2 . Device 1 | . 1 . Storage 1 | . 1 . Processor . | . . . Hackware . | . . . Protection . | . . . Artifact . | . . . Weapon 8 | . 3 5 Energy Gun . | . . . Energy Cannon 2 | . 2 . Ballistic Gun 2 | . . 2 Ballistic Cannon . | . . . Launcher 4 | . 1 3 Special Weapon . | . . . Impact Weapon . | . . . Slashing Weapon . | . . . Piercing Weapon . | . . . Special Melee Weapon . | . . . Unidentified Prototypes 1 | . 1 . Parts Lost 4 | . . 4 Power . | . . . Propulsion 2 | . . 2 Utility . | . . . Weapon 2 | . . 2 Highest Loss Streak 3 | . . 3 To Critical Strikes . | . . . Average Slot Usage (%) 89 | . 87 97 Engine 14 | . 14 14 Treads 24 | . 23 27 Leg 2 | . 2 . Device 5 | . 2 14 Storage 15 | . 15 14 Energy Cannon 9 | . 10 6 Ballistic Gun 16 | . 15 18 Launcher 2 | . 2 2 Peak Build Rating 11 | . 10 11 Average Rating 7 | . 6 10 On Entrance 7 | 6 6 10 Naked Turns . | . . . Heaviest Build 38 | 14 38 35 Greatest Support 40 | 20 40 40 Greatest Overweight (x) 4 | . 4 . Average Overweight (x) . | . . . Largest Inventory Capacity 15 | . 15 15 Average Capacity 11 | . 10 15 Most Carried 15 | . 15 15 Average Carried 10 | . 9 14 Final Capacity 15 | 8 15 15 Final Carried 15 | 6 15 14 Class Distribution -------------------- 100% | Mutant Dominant Class ---------------- Mutant | -10/Materials Mutant | -10/Mines Resources | -11 -10 -10 ----------- Run | Yrd Mat Min Matter Collected 502 | 200 170 132 Remotely . | . . . Salvage Created 394 | . 357 37 Parts 21 | . 21 . Haulers Intercepted 1 | . 1 . Recyclers Shooed . | . . . Parts Field Recycled . | . . . Retrieved Matter . | . . . Parts Self-Destructed . | . . . Prevented . | . . . Kills | -11 -10 -10 ------- Run | Yrd Mat Min Combat Hostiles Destroyed 18 | . 8 10 Guns 3 | . 1 2 Cannons 3 | . 3 . AOE 12 | . 4 8 Classes Destroyed 6 | . 4 2 Hauler 1 | . 1 . Recycler 1 | . 1 . Swarmer 3 | . 3 . Grunt 5 | . 5 . Demolisher 1 | . . 1 Assembled 9 | . . 9 Best Kill Streak 7 | . 2 7 Combat Bots Only 7 | . 2 7 Max Kills in Single Turn 3 | . 2 3 Gunslinging . | . . . Exploded 3 | . 2 3 Melee . | . . . Uniques/NPCs Destroyed . | . . . Combat | -11 -10 -10 -------- Run | Yrd Mat Min Hostile Shots Fired 49 | . 11 38 Missed 7 | . 1 6 Damage Taken 1042 | . 111 931 Core 250 | . 45 205 Absorbed by Shields . | . . . Core Remaining (%) 100 | 100 . . Volleys Fired 38 | . 23 15 Largest 2 | . 2 2 Hottest 80 | . 80 60 Shots Fired 66 | . 42 24 Gun 31 | . 19 12 Cannon 19 | . 19 . Launcher 16 | . 4 12 Special . | . . . Kinetic 31 | . 19 12 Thermal 19 | . 19 . Explosive 16 | . 4 12 Electromagnetic . | . . . Robot Hit Streak 20 | . 20 5 Robot Miss Streak 4 | . 1 4 Penetration Max . | . . . Secondary Targets . | . . . Shots Hit Robots 44 | . 31 13 Core Hits 44 | . 17 27 Critical Kills . | . . . Critical Parts Destroyed . | . . . Critical Strikes . | . . . Melee Attacks . | . . . Impact . | . . . Slashing . | . . . Piercing . | . . . Sneak Attacks . | . . . Combat Hostiles . | . . . Follow-up Attacks . | . . . Damage Inflicted 1470 | . 642 828 Guns 268 | . 157 111 Cannons 264 | . 264 . Explosions 938 | . 221 717 Melee . | . . . Ramming . | . . . Kinetic 268 | . 157 111 Thermal 264 | . 264 . Explosive 938 | . 221 717 Electromagnetic . | . . . Impact . | . . . Slashing . | . . . Piercing . | . . . Highest Corruption . | . . . Average Corruption . | . . . Corruption Purged . | . . . Corruption Blocked . | . . . Overload Shots . | . . . Overflow Damage 30 | . . 30 Projectiles . | . . . Explosions 30 | . . 30 Melee . | . . . Knockbacks . | . . . Impact . | . . . Kinetic . | . . . Secondary . | . . . Self-Inflicted Damage 74 | . . 74 Shots 5 | . . 5 Rammed . | . . . Targets Rammed . | . . . Kicked . | . . . Crushed . | . . . Highest Temperature 114 | . 114 9 Average Temperature 36 | . 40 5 Received Heat Transfer 48 | . 48 . Siege Activations . | . . . Robots Corrupted . | . . . Combat Hostiles . | . . . Parts Fried . | . . . Impact Corruptions . | . . . Robots Melted . | . . . Combat Hostiles . | . . . Parts Melted . | . . . Heat Transferred 555 | . 555 . Parts Sabotaged . | . . . Parts Stolen . | . . . Parts Stripped . | . . . Power Chain Reactions . | . . . Alert | -11 -10 -10 ------- Run | Yrd Mat Min Peak Influence 251 | . 251 96 Initial 39 | . . 39 Average 73 | . 79 53 Maximum Alert Level 1 | . 1 . Low Security (%) 92 | . 90 100 Level 1 7 | . 9 . Level 2 . | . . . Level 3 . | . . . Level 4 . | . . . Level 5 . | . . . High Security . | . . . Max Security . | . . . Squads Dispatched 1 | . 1 . Investigation . | . . . Extermination . | . . . Reinforcement 1 | . 1 . Assault . | . . . Garrison . | . . . Intercept . | . . . Searches Triggered . | . . . Construction Impeded . | . . . Haulers Reinforced . | . . . Active Scanning Responses . | . . . Cargo Convoy Interrupts . | . . . Stealth | -11 -10 -10 --------- Run | Yrd Mat Min Distress Signals 4 | . 4 . Communications Jammed . | . . . Distress Signals . | . . . Times Spotted 30 | . 16 14 Peak Tracking Total 7 | . 4 7 Tactical Retreats 1 | . 1 . Traps | -11 -10 -10 ------- Run | Yrd Mat Min Traps Triggered . | . . . Indirectly . | . . . Trap Hack Attempts . | . . . Triggered . | . . . Disarmed . | . . . Reprogrammed . | . . . Reused . | . . . Traps Extracted . | . . . Installed . | . . . Triggered . | . . . Machines | -11 -10 -10 ---------- Run | Yrd Mat Min Machines Disabled 1 | . 1 . Max in Single Turn 1 | . 1 . Machines Repaired . | . . . Machines Dismantled . | . . . Machines Sabotaged . | . . . Overloaded Fab Kills . | . . . Hacking | -11 -10 -10 --------- Run | Yrd Mat Min Machines Accessed 5 | . 5 . Terminals 5 | . 5 . Fabricators . | . . . Repair Stations . | . . . Recycling Units . | . . . Scanalyzers . | . . . Garrison Access . | . . . Total Hacks 13 | . 13 . Successful 9 | . 9 . Failed 3 | . 3 . Catastrophic . | . . . Database Lockouts 1 | . 1 . Manual 6 | . 6 . Terminals 13 | . 13 . Fabricators . | . . . Repair Stations . | . . . Recycling Units . | . . . Scanalyzers . | . . . Garrison Access . | . . . Terminal Hacks 7 | . 7 . Part Schematic 2 | . 2 . Alert Level 1 | . 1 . Locate Traps 1 | . 1 . Hauler Manifests 1 | . 1 . Registered Components 1 | . 1 . Zone Layout 1 | . 1 . Fabricator Hacks . | . . . Repair Station Hacks . | . . . Recycling Unit Hacks . | . . . Scanalyzer . | . . . Garrison Access Hacks . | . . . Unauthorized Hacks 2 | . 2 . Terminals 2 | . 2 . Botnet 2 | . 2 . Fabricators . | . . . Repair Stations . | . . . Recycling Units . | . . . Scanalyzers . | . . . Garrison Access . | . . . Data Cores Recovered . | . . . Used . | . . . Hacking Detections 3 | . 3 . Full Trace Events . | . . . Feedback Events . | . . . Feedback Blocked . | . . . Robot Schematics Acquired . | . . . Robots Built . | . . . Authchips . | . . . Time . | . . . Total Robot Build Rating . | . . . Part Schematics Acquired 2 | . 2 . Parts Built . | . . . Authchips . | . . . Time . | . . . Total Part Build Rating . | . . . Parts Repaired . | . . . Time . | . . . Parts Recycled . | . . . Recycled Matter . | . . . Retrieved Matter . | . . . Retrieved Components . | . . . Parts Scanalyzed . | . . . Part Schematics Acquired . | . . . Parts Damaged . | . . . Bothacking | -11 -10 -10 ------------ Run | Yrd Mat Min Used RIF Installer . | . . . Robots Hacked . | . . . Non-combat . | . . . Combat . | . . . Robot Hacks Applied . | . . . Relay Couplers Released . | . . . Fabnet Peak Effective % . | . . . Robots Rewired . | . . . Allies Hacked . | . . . Hacks Repelled . | . . . Allies | -11 -10 -10 -------- Run | Yrd Mat Min Total Allies . | . . . Largest Group . | . . . Highest-Rated Group . | . . . Highest-Rated Ally . | . . . Total Orders . | . . . Ally Attacks . | . . . Total Damage . | . . . Kills . | . . . Allies Corrupted . | . . . Allies Melted . | . . . Intel | -11 -10 -10 ------- Run | Yrd Mat Min Robot Analysis Total . | . . . Derelict Logs Recovered 2 | . . 2 Drone Launches . | . . . Drone Recoveries . | . . . Exploration | -11 -10 -10 ------------- Run | Yrd Mat Min Turns Passed 1241 | . 954 287 Spaces Moved 677 | 1 527 149 Core 30 | . 30 . Treads 573 | . 424 149 Legs 74 | 1 73 . Wheels . | . . . Hover . | . . . Flight . | . . . Fastest Speed 120 | 120 120 160 Average Speed 159 | 120 159 160 Slowest Speed 250 | 120 250 160 Overloaded Moves . | . . . Propulsion Burnouts . | . . . Robots Hopped . | . . . Cave-ins Triggered . | . . . Exploration Rate (%) 42 | 2 86 38 Regions Visited 2 Branch Regions 1 Pre-discovered Areas . | . . . Known Exits Taken . | . . . Unknown Exits Taken 2 | 1 1 . Scrap Searched 1 | . . 1 Spaces Dug . | . . . Terrain Destroyed 88 | . 32 56 Melee . | . . . Projectile . | . . . AOE 88 | . 32 56 Terrain Rammed . | . . . Walls Destroyed . | . . . Machines Disabled . | . . . Actions | -11 -10 -10 --------- Run | Yrd Mat Min Total 774 | . 601 173 Wait 19 | . 19 . Move 675 | . 526 149 Hop . | . . . Pick Up 18 | . 16 2 Fast Attach 1 | . 1 . Attach 5 | . 2 3 Detach . | . . . Swap 10 | . 6 4 Drop 8 | . 8 . Fire 38 | . 23 15 Melee . | . . . Ram . | . . . Kick . | . . . Crush . | . . . Escape Stasis . | . . . Rewire . | . . . Trap . | . . . Miscellaneous . | . . . Route ------- -11/Scrapyard -10/Materials (discovered 5 exits: [*Mat x3] / [*Min x2]) -10/Mines (discovered 2 exits: [*Mat x2]) History --------- Turn | Location | Event 1 | -11/Scrapyard | Discovered new exit (range 0) 1 | -11/Scrapyard | Entered Materials 232 | -10/Materials | Discovered new exit (range 16) 305 | -10/Materials | Build established: Mutant 406 | -10/Materials | Discovered new exit (range 5) 406 | -10/Materials | Discovered new exit (range 16) 504 | -10/Materials | Central database locked down 616 | -10/Materials | Discovered new exit (range 5) 861 | -10/Materials | Discovered new exit (range 14) 955 | -10/Materials | Entered Mines 957 | -10/Mines | Discovered new exit (range 12) 958 | -10/Mines | Met a Derelict bent on vengeance 1015 | -10/Mines | Discovered new exit (range 15) 1056 | -10/Mines | Learned Materials security intel 1083 | -10/Mines | Assembled infested the area 1114 | -10/Mines | Core integrity fell below 50% 1142 | -10/Mines | Destroyed 7 combat bots 1143 | -10/Mines | Lost 3 parts (2n1w) 1154 | -10/Mines | Found a damaged Exp. Sensor Array with a note attached 1157 | -10/Mines | Found Prototype Device 1235 | -10/Mines | Core integrity fell below 20% 1242 | -10/Mines | Destroyed self with Grenade Launcher Last Messages --------------- 01154_ U-05 Engineer lays Concrete. 01156_ The unstable cave ceiling collapses. 01156_ U-05 Engineer builds a Wall. 01157_ Acquired Prototype Device. 01159_ U-05 Engineer lays Concrete. 01162_ U-05 Engineer builds a Wall. 01167_ The unstable cave ceiling collapses. 01173_ K-01 Serf collects debris. 01173_ U-05 Engineer lays Concrete. 01176_ The unstable cave ceiling collapses. 01178_ as-35452 destroyed. 01189_ Acquired 19 matter. 01194_ U-05 Engineer lays Concrete. 01204_ Acquired Imp. Terrain Scanner. 01205_ Acquired 16 matter. 01234_ Destroyed Asb. F-torch. 01236_ as-35259 destroyed. 01236_ as-03931 destroyed. 01236_ Assault Rifle destroyed. 01236_ Destroyed Assault Rifle. Map ----- +----------------------------------------------------+ | | | | | | | | | | | | | | | | | | | | | ??????????????????????????????????????????? | | ??????????????????????????????????????????? | | ?????????????#########????????????????????? | | ????????????#############?????????????????? | | ????????????### #####?????????????????? | | ????????????## ?????????????????? | | ????????????## """ ####?????????????????? | | ????????????### """ #####???????????????? | | ?????????????## """ #######????????????? | | ?????????????### ##????????????? | | ??????????????## ### ### ##????????????? | | ??????????????## ####?####???????????????? | | ??????????????## ##????????????????????? | | ??????????????## ##????????????????????? | | ??????????????#### ########??????????????? | | ??????????????####@ #######?????????????? | | ??????????????#### a ###?????????????? | | ?????????????#### * ### ???????????? | | ?????????????### = = ### ##?????????? | | ?????????????## ##?????????? | | ????????????### a ######?????????? | | ???????????#### ######?????????? | | ?????????##### ##????????????? | | ??????####### ### ##????????????? | | ??????##### #### | ????????????? | | ??????## " ###?? !%! ??????????? | | ??????## * ###?? ## # ??????????? | | ??????### = # ###??? #### ##???????????? | | ??????### ######? ##### ##???????????? | | ???????## ###? ####????????????????? | | ???????### # ##? ##??????????????????? | | ???????### #### ##??????????????????? | | ??????###### ## #### ##??????????????????? | | ??????### ## ##??????????????????? | | ?????### # ##??????????????????? | | ?????##### ####??????????????????? | | ????### # ####??????????????????? | | ????##### ###????????????????????? | | ????#### # ### ####????????????????????? | | ????## # #####?????????????????????? | +----------------------------------------------------+ Best States ------------- Heat Dissipation 25 Energy Generation 14 Energy Capacity 280 Matter Stores 300 Matter Capacity 300 Sight Range 16 Terrain Scan Density 10 Evasion (%) 55 Recoil Reduction 2 Item Schematics ----------------- Huge Storage Unit | -10/Materials | Hacked Hcp. Storage Unit | -10/Materials | Hacked Robot Schematics ------------------ None Fabricated ------------ Nothing Alien Tech Used ----------------- None Achievements -------------- None Challenges ------------ None Game ------ Seed PointyPitchforkScreen Manual? 0 Play Time 00:11:26 Cumulative 140.9 hours Start 2024.08.14 @ 15:13:02 End 2024.08.14 @ 15:24:13 Sessions 1 Manual Loads 0 Difficulty Rogue Special Mode None Game No. 73 Rogue 71 Adventurer 0 Explorer 2 Win Type - Total 8 Types 8/0/0/0/0/0/0/0/0 Lore% 53 Gallery% 67 Achievement% 57 Wizard Run 0 Options --------- Layout 0 ASCII 0 Keyboard 1 Movement Numpad Keybinds 0 Fullscreen 1 Font 24/Smallcaps Map View 76x50 Zoom Use 0% Tactical HUD 1 Map Filters NONE Filters NONE Steam 1 RUN: efb14155-acc3-4a8f-9959-467991a461e8